[Event "Betsys MČR v online bleskovém šachu 2021"]
[Site "Chess.com"]
[Date "2021.04.17"]
[Round "10"]
[White "Stalri"]
[Black "zdenav"]
[Result "1-0"]
[WhiteElo "2206"]
[BlackElo "1858"]
[TimeControl "180+1"]
[EndTime "10:41:01 PDT"]
[Termination "Uživatel Stalri zvítězil na čas"]

1. d4 {[%clk 0:03:00.9]} 1... d5 {[%clk 0:02:58.8]} 2. c4 {[%clk 0:03:00.9]}
2... e6 {[%clk 0:02:58.5]} 3. Nc3 {[%clk 0:03:00.5]} 3... Nf6 {[%clk 0:02:58.1]}
4. cxd5 {[%clk 0:03:00.1]} 4... exd5 {[%clk 0:02:57.7]} 5. Bg5 {[%clk
0:03:00.1]} 5... c6 {[%clk 0:02:57.8]} 6. e3 {[%clk 0:02:59.6]} 6... Be7 {[%clk
0:02:56.8]} 7. Bd3 {[%clk 0:02:58.9]} 7... O-O {[%clk 0:02:56.7]} 8. Qc2 {[%clk
0:02:58.7]} 8... Nbd7 {[%clk 0:02:55.3]} 9. Nf3 {[%clk 0:02:58.2]} 9... Re8
{[%clk 0:02:55]} 10. h3 {[%clk 0:02:58.4]} 10... Nf8 {[%clk 0:02:54.9]} 11. Bf4
{[%clk 0:02:57.7]} 11... Ng6 {[%clk 0:02:46.9]} 12. Bh2 {[%clk 0:02:55.8]} 12...
Bd6 {[%clk 0:02:41.8]} 13. Bxd6 {[%clk 0:02:55.7]} 13... Qxd6 {[%clk 0:02:41.3]}
14. O-O-O {[%clk 0:02:56.3]} 14... b5 {[%clk 0:02:37.6]} 15. g4 {[%clk
0:02:56.2]} 15... a5 {[%clk 0:02:36.5]} 16. g5 {[%clk 0:02:56.1]} 16... Nh5
{[%clk 0:02:34.5]} 17. Kb1 {[%clk 0:02:49.6]} 17... Nf8 {[%clk 0:02:23.9]} 18.
Ne5 {[%clk 0:02:38.6]} 18... g6 {[%clk 0:02:22.3]} 19. f4 {[%clk 0:02:36.4]}
19... Ng7 {[%clk 0:02:11.4]} 20. h4 {[%clk 0:02:30.9]} 20... Bf5 {[%clk
0:02:02.3]} 21. Ne2 {[%clk 0:02:20.9]} 21... Bxd3 {[%clk 0:01:58.9]} 22. Rxd3
{[%clk 0:02:13.3]} 22... Rac8 {[%clk 0:01:55.2]} 23. Ng3 {[%clk 0:02:08.5]}
23... f6 {[%clk 0:01:42.2]} 24. Ng4 {[%clk 0:02:02.1]} 24... Nd7 {[%clk
0:01:38.8]} 25. h5 {[%clk 0:01:53]} 25... f5 {[%clk 0:01:37.7]} 26. Ne5 {[%clk
0:01:26.7]} 26... Nxe5 {[%clk 0:01:22.2]} 27. dxe5 {[%clk 0:01:18.3]} 27... Qe7
{[%clk 0:01:13.9]} 28. hxg6 {[%clk 0:01:15.9]} 28... hxg6 {[%clk 0:01:13.3]} 29.
Rd2 {[%clk 0:00:44.1]} 29... Kf7 {[%clk 0:01:08.4]} 30. Rdh2 {[%clk 0:00:43.5]}
30... Qb4 {[%clk 0:01:03.6]} 31. Rh7 {[%clk 0:00:38.9]} 31... Qc4 {[%clk
0:00:58.2]} 32. Qh2 {[%clk 0:00:31.3]} 32... Rg8 {[%clk 0:00:53.7]} 33. Ka1
{[%clk 0:00:27.2]} 33... Qc5 {[%clk 0:00:39.4]} 34. Nxf5 {[%clk 0:00:21.7]}
34... gxf5 {[%clk 0:00:35.4]} 35. Qh5+ {[%clk 0:00:21.6]} 35... Kf8 {[%clk
0:00:34.8]} 36. Qg6 {[%clk 0:00:20.5]} 36... Qe7 {[%clk 0:00:26.6]} 37. Rh8
{[%clk 0:00:12.5]} 37... Qe6 {[%clk 0:00:06.6]} 38. Qh7 {[%clk 0:00:05.3]} 1-0

[Event "Betsys MČR v online bleskovém šachu 2021"]
[Site "Chess.com"]
[Date "2021.04.17"]
[Round "10"]
[White "CZpeeeter"]
[Black "Honzik1950"]
[Result "1-0"]
[WhiteElo "1705"]
[BlackElo "1507"]
[TimeControl "180+1"]
[EndTime "10:41:01 PDT"]
[Termination "Uživatel CZpeeeter zvítězil na čas"]

1. d4 {[%clk 0:03:00.9]} 1... a6 {[%clk 0:02:58.7]} 2. Nf3 {[%clk 0:02:59.9]}
2... b5 {[%clk 0:02:56.3]} 3. e4 {[%clk 0:02:57.3]} 3... e6 {[%clk 0:02:56.2]}
4. Bd3 {[%clk 0:02:56.6]} 4... Nf6 {[%clk 0:02:55.5]} 5. O-O {[%clk 0:02:56.3]}
5... Bb7 {[%clk 0:02:54.6]} 6. Nbd2 {[%clk 0:02:53.7]} 6... Be7 {[%clk
0:02:54.4]} 7. b3 {[%clk 0:02:53.9]} 7... d6 {[%clk 0:02:54.1]} 8. Bb2 {[%clk
0:02:54.1]} 8... c5 {[%clk 0:02:54.2]} 9. c4 {[%clk 0:02:52.1]} 9... bxc4 {[%clk
0:02:49.9]} 10. bxc4 {[%clk 0:02:49.3]} 10... cxd4 {[%clk 0:02:40.2]} 11. Nxd4
{[%clk 0:02:46.2]} 11... Nc6 {[%clk 0:02:33.4]} 12. Qa4 {[%clk 0:02:42.1]} 12...
Qc7 {[%clk 0:02:31.2]} 13. Bc3 {[%clk 0:02:34.7]} 13... O-O {[%clk 0:02:29.1]}
14. Rab1 {[%clk 0:02:34.3]} 14... Nxd4 {[%clk 0:02:02.6]} 15. Bxd4 {[%clk
0:02:32.7]} 15... Bc6 {[%clk 0:01:56.8]} 16. Qc2 {[%clk 0:02:27.4]} 16... Rfb8
{[%clk 0:01:54.1]} 17. Qc3 {[%clk 0:02:17.9]} 17... e5 {[%clk 0:01:45]} 18. Be3
{[%clk 0:02:15.9]} 18... Ng4 {[%clk 0:01:38.3]} 19. Be2 {[%clk 0:02:03.6]} 19...
Nxe3 {[%clk 0:01:33.7]} 20. Qxe3 {[%clk 0:02:03.1]} 20... Rxb1 {[%clk
0:01:29.5]} 21. Rxb1 {[%clk 0:02:02.1]} 21... Rb8 {[%clk 0:01:28.8]} 22. Rb3
{[%clk 0:01:59.2]} 22... Rxb3 {[%clk 0:01:27.9]} 23. axb3 {[%clk 0:01:58.6]}
23... Qb7 {[%clk 0:01:19.5]} 24. f4 {[%clk 0:01:47.6]} 24... h6 {[%clk
0:01:14.3]} 25. fxe5 {[%clk 0:01:42.9]} 25... dxe5 {[%clk 0:01:13.5]} 26. Bf3
{[%clk 0:01:37.6]} 26... Bg5 {[%clk 0:01:01.6]} 27. Qd3 {[%clk 0:01:23.4]} 27...
Bxd2 {[%clk 0:00:53.2]} 28. Qd8+ {[%clk 0:01:17.5]} 28... Kh7 {[%clk 0:00:51.8]}
29. Qxd2 {[%clk 0:01:17.3]} 29... Qxb3 {[%clk 0:00:46.5]} 30. Qe2 {[%clk
0:01:07.5]} 30... Qc3 {[%clk 0:00:26.1]} 31. g3 {[%clk 0:00:56.7]} 31... Qd4+
{[%clk 0:00:26.2]} 32. Kg2 {[%clk 0:00:55.3]} 32... f5 {[%clk 0:00:17.8]} 33.
exf5 {[%clk 0:00:49.8]} 33... Bxf3+ {[%clk 0:00:17.7]} 34. Kxf3 {[%clk
0:00:49.6]} 34... a5 {[%clk 0:00:11]} 35. h3 {[%clk 0:00:39.9]} 35... a4 {[%clk
0:00:10.7]} 36. Qc2 {[%clk 0:00:36.9]} 36... e4+ {[%clk 0:00:03.8]} 37. Kf4
{[%clk 0:00:27.6]} 37... Qd3 {[%clk 0:00:03.5]} 38. Qxa4 {[%clk 0:00:21]} 38...
Qf3+ {[%clk 0:00:02.9]} 39. Ke5 {[%clk 0:00:20.6]} 39... Qxg3+ {[%clk
0:00:02.6]} 40. Kxe4 {[%clk 0:00:20.2]} 40... Qxh3 {[%clk 0:00:02.3]} 41. Qe8
{[%clk 0:00:15.9]} 41... Qg4+ {[%clk 0:00:01.1]} 42. Kd5 {[%clk 0:00:14.5]} 1-0

[Event "Betsys MČR v online bleskovém šachu 2021"]
[Site "Chess.com"]
[Date "2021.04.17"]
[Round "10"]
[White "kominekmart"]
[Black "adasmrazek"]
[Result "0-1"]
[WhiteElo "1546"]
[BlackElo "1354"]
[TimeControl "180+1"]
[EndTime "10:41:01 PDT"]
[Termination "Uživatel adasmrazek zvítězil na čas"]

1. e4 {[%clk 0:03:00.9]} 1... c5 {[%clk 0:02:57.1]} 2. Nf3 {[%clk 0:02:52.3]}
2... Nc6 {[%clk 0:02:52.8]} 3. c4 {[%clk 0:02:51.8]} 3... g6 {[%clk 0:02:48.3]}
4. d3 {[%clk 0:02:51.1]} 4... Bg7 {[%clk 0:02:44.8]} 5. Nc3 {[%clk 0:02:50.7]}
5... Nf6 {[%clk 0:02:38.1]} 6. Be3 {[%clk 0:02:49.4]} 6... d6 {[%clk 0:02:35.4]}
7. g4 {[%clk 0:02:48.6]} 7... Bxg4 {[%clk 0:02:30]} 8. Be2 {[%clk 0:02:47.9]}
8... Bxf3 {[%clk 0:02:23.5]} 9. Bxf3 {[%clk 0:02:46.9]} 9... O-O {[%clk
0:02:21.8]} 10. O-O {[%clk 0:02:46]} 10... Rc8 {[%clk 0:02:20]} 11. Qd2 {[%clk
0:02:42.3]} 11... Ne5 {[%clk 0:02:18.6]} 12. Bg2 {[%clk 0:02:40.1]} 12... Neg4
{[%clk 0:02:12.6]} 13. Bg5 {[%clk 0:02:31.1]} 13... b6 {[%clk 0:02:02.1]} 14. h3
{[%clk 0:02:26.1]} 14... Ne5 {[%clk 0:01:59.1]} 15. f4 {[%clk 0:02:21.7]} 15...
Nc6 {[%clk 0:01:44.7]} 16. f5 {[%clk 0:02:19.3]} 16... Nd4 {[%clk 0:01:42.6]}
17. Bh6 {[%clk 0:02:06.3]} 17... Qd7 {[%clk 0:01:29.7]} 18. fxg6 {[%clk
0:01:38.8]} 18... fxg6 {[%clk 0:01:25.6]} 19. Bxg7 {[%clk 0:01:23.4]} 19... Kxg7
{[%clk 0:01:26.5]} 20. Qg5 {[%clk 0:01:17.1]} 20... Rf7 {[%clk 0:01:20.6]} 21.
e5 {[%clk 0:01:15.1]} 21... dxe5 {[%clk 0:01:16.8]} 22. Qxe5 {[%clk 0:01:14.5]}
22... Rcf8 {[%clk 0:01:17.4]} 23. Bd5 {[%clk 0:00:58.6]} 23... e6 {[%clk
0:01:12.5]} 24. Bg2 {[%clk 0:00:30.4]} 24... Kg8 {[%clk 0:00:54.6]} 25. Ne4
{[%clk 0:00:17.8]} 25... Ne2+ {[%clk 0:00:51.9]} 26. Kh2 {[%clk 0:00:16.3]}
26... Nxe4 {[%clk 0:00:41.8]} 27. Qxe4 {[%clk 0:00:15.6]} 27... Nd4 {[%clk
0:00:37.4]} 28. Rxf7 {[%clk 0:00:10.9]} 28... Rxf7 {[%clk 0:00:37.1]} 29. Rf1
{[%clk 0:00:10.3]} 29... Rxf1 {[%clk 0:00:34.6]} 30. Bxf1 {[%clk 0:00:09.6]}
30... Qd6+ {[%clk 0:00:32.7]} 31. Kh1 {[%clk 0:00:08.3]} 31... e5 {[%clk
0:00:21.6]} 32. Qa8+ {[%clk 0:00:07.6]} 32... Kg7 {[%clk 0:00:21.2]} 33. Qb7+
{[%clk 0:00:07.4]} 33... Kh6 {[%clk 0:00:18.6]} 34. Qxa7 {[%clk 0:00:07.1]}
34... Qf6 {[%clk 0:00:17.5]} 35. Qb7 {[%clk 0:00:05.4]} 35... Qxf1+ {[%clk
0:00:15.3]} 36. Kh2 {[%clk 0:00:03.5]} 36... Qf2+ {[%clk 0:00:15.4]} 37. Qg2
{[%clk 0:00:02.8]} 37... Nf3+ {[%clk 0:00:14]} 38. Kh1 {[%clk 0:00:01.4]} 38...
Qe1+ {[%clk 0:00:11.3]} 0-1

[Event "Betsys MČR v online bleskovém šachu 2021"]
[Site "Chess.com"]
[Date "2021.04.17"]
[Round "10"]
[White "Eliska0107"]
[Black "Naty139"]
[Result "1/2-1/2"]
[WhiteElo "2059"]
[BlackElo "2226"]
[TimeControl "180+1"]
[EndTime "10:41:02 PDT"]
[Termination "Remíza opakováním pozice"]

1. e4 {[%clk 0:03:00.9]} 1... Nf6 {[%clk 0:02:59.2]} 2. d3 {[%clk 0:02:59.4]}
2... e5 {[%clk 0:02:58.2]} 3. Be2 {[%clk 0:02:58.2]} 3... d5 {[%clk 0:02:53.9]}
4. Nd2 {[%clk 0:02:58.1]} 4... c5 {[%clk 0:02:51.5]} 5. Ngf3 {[%clk 0:02:57.4]}
5... Nc6 {[%clk 0:02:50.7]} 6. O-O {[%clk 0:02:57]} 6... dxe4 {[%clk 0:02:41.3]}
7. dxe4 {[%clk 0:02:56.4]} 7... Be7 {[%clk 0:02:40.8]} 8. c3 {[%clk 0:02:55.8]}
8... O-O {[%clk 0:02:34.4]} 9. Qc2 {[%clk 0:02:55.7]} 9... h6 {[%clk 0:02:33.2]}
10. Nc4 {[%clk 0:02:55.4]} 10... Qc7 {[%clk 0:02:32.8]} 11. Ne3 {[%clk
0:02:55.2]} 11... Be6 {[%clk 0:02:28.2]} 12. Bc4 {[%clk 0:02:47.3]} 12... Bxc4
{[%clk 0:02:26.6]} 13. Nxc4 {[%clk 0:02:46.9]} 13... b5 {[%clk 0:02:26.4]} 14.
Ne3 {[%clk 0:02:46.6]} 14... Rfd8 {[%clk 0:02:19.9]} 15. Nf5 {[%clk 0:02:46.1]}
15... Bf8 {[%clk 0:02:19.9]} 16. Be3 {[%clk 0:02:46.1]} 16... c4 {[%clk
0:02:10.8]} 17. Rad1 {[%clk 0:02:44.3]} 17... Ne7 {[%clk 0:02:06.3]} 18. Nxe7+
{[%clk 0:02:36.4]} 18... Bxe7 {[%clk 0:02:00.3]} 19. h3 {[%clk 0:02:35.1]} 19...
Bc5 {[%clk 0:01:57.1]} 20. Bxc5 {[%clk 0:02:33.3]} 20... Qxc5 {[%clk 0:01:58]}
21. Rd2 {[%clk 0:02:33.4]} 21... Rxd2 {[%clk 0:01:55.4]} 22. Nxd2 {[%clk
0:02:33]} 22... Rd8 {[%clk 0:01:53.9]} 23. b3 {[%clk 0:02:26.6]} 23... Rd3
{[%clk 0:01:31.6]} 24. b4 {[%clk 0:02:10.9]} 24... Qd6 {[%clk 0:01:30.6]} 25.
Nf3 {[%clk 0:02:10.6]} 25... Nxe4 {[%clk 0:01:26.5]} 26. Re1 {[%clk 0:02:07.6]}
26... f5 {[%clk 0:01:07.8]} 27. a4 {[%clk 0:01:41.2]} 27... a6 {[%clk 0:01:07]}
28. axb5 {[%clk 0:01:40.7]} 28... axb5 {[%clk 0:01:06.9]} 29. Qa2 {[%clk
0:01:38.5]} 29... Kh7 {[%clk 0:01:05]} 30. Qa7 {[%clk 0:01:22.4]} 30... Rd1
{[%clk 0:00:54.3]} 31. Rxd1 {[%clk 0:01:14.2]} 31... Qxd1+ {[%clk 0:00:53.9]}
32. Kh2 {[%clk 0:01:14.4]} 32... Qc1 {[%clk 0:00:45.6]} 33. Qd7 {[%clk
0:00:44.9]} 33... Qf4+ {[%clk 0:00:43.1]} 34. Kg1 {[%clk 0:00:36.7]} 34... Nxc3
{[%clk 0:00:39.2]} 35. Qe6 {[%clk 0:00:34.5]} 35... Ne2+ {[%clk 0:00:33.6]} 36.
Kf1 {[%clk 0:00:32.8]} 36... Nd4 {[%clk 0:00:28.9]} 37. Qxe5 {[%clk 0:00:27.7]}
37... Qc1+ {[%clk 0:00:19.4]} 38. Ne1 {[%clk 0:00:26.2]} 38... Qd2 {[%clk
0:00:14.4]} 39. g4 {[%clk 0:00:19.9]} 39... fxg4 {[%clk 0:00:14]} 40. hxg4
{[%clk 0:00:20.1]} 40... Nc2 {[%clk 0:00:10.3]} 41. Qe4+ {[%clk 0:00:19.4]}
41... Kg8 {[%clk 0:00:09.9]} 42. Qxc2 {[%clk 0:00:19.6]} 42... Qxb4 {[%clk
0:00:09.8]} 43. Qf5 {[%clk 0:00:18.5]} 43... c3 {[%clk 0:00:09.2]} 44. Qe6+
{[%clk 0:00:18]} 44... Kh7 {[%clk 0:00:09.2]} 45. Qf5+ {[%clk 0:00:17.6]} 45...
Kg8 {[%clk 0:00:09.4]} 46. Qe6+ {[%clk 0:00:17.9]} 46... Kh7 {[%clk 0:00:09.6]}
47. Qf5+ {[%clk 0:00:18.3]} 47... Kg8 {[%clk 0:00:09.6]} 1/2-1/2

[Event "Betsys MČR v online bleskovém šachu 2021"]
[Site "Chess.com"]
[Date "2021.04.17"]
[Round "10"]
[White "trosecnik"]
[Black "honzasoucek"]
[Result "1-0"]
[WhiteElo "1828"]
[BlackElo "1621"]
[TimeControl "180+1"]
[EndTime "10:41:02 PDT"]
[Termination "Uživatel trosecnik zvítězil na čas"]

1. e4 {[%clk 0:02:59.5]} 1... c5 {[%clk 0:02:56.9]} 2. c3 {[%clk 0:02:59.6]}
2... d5 {[%clk 0:02:55.7]} 3. exd5 {[%clk 0:03:00.5]} 3... Qxd5 {[%clk
0:02:56.1]} 4. d4 {[%clk 0:03:00.1]} 4... Nf6 {[%clk 0:02:51.3]} 5. Nf3 {[%clk
0:03:00.2]} 5... Bg4 {[%clk 0:02:50.6]} 6. Be2 {[%clk 0:02:59.9]} 6... e6 {[%clk
0:02:50.3]} 7. O-O {[%clk 0:03:00.2]} 7... Nc6 {[%clk 0:02:50.4]} 8. h3 {[%clk
0:03:00.7]} 8... Bh5 {[%clk 0:02:49.4]} 9. Be3 {[%clk 0:02:59.9]} 9... O-O-O
{[%clk 0:02:48.4]} 10. dxc5 {[%clk 0:02:59]} 10... Bxc5 {[%clk 0:02:37]} 11.
Qxd5 {[%clk 0:02:54.5]} 11... Rxd5 {[%clk 0:02:36.4]} 12. Bxc5 {[%clk
0:02:27.5]} 12... Rxc5 {[%clk 0:02:34.6]} 13. Rd1 {[%clk 0:02:28.1]} 13... Rd5
{[%clk 0:02:31.9]} 14. Na3 {[%clk 0:02:26.1]} 14... Rhd8 {[%clk 0:02:29.7]} 15.
g4 {[%clk 0:02:21.6]} 15... Bg6 {[%clk 0:02:28.9]} 16. Nc4 {[%clk 0:02:20.8]}
16... Bd3 {[%clk 0:01:51.9]} 17. Bxd3 {[%clk 0:02:10.7]} 17... Rxd3 {[%clk
0:01:50.6]} 18. Rxd3 {[%clk 0:02:05]} 18... Rxd3 {[%clk 0:01:50.8]} 19. Kg2
{[%clk 0:02:05.9]} 19... Ne4 {[%clk 0:01:36.3]} 20. Re1 {[%clk 0:01:55.5]} 20...
f5 {[%clk 0:01:10.4]} 21. Re2 {[%clk 0:01:27.4]} 21... b5 {[%clk 0:01:00.9]} 22.
Nce5 {[%clk 0:01:25.1]} 22... Nxe5 {[%clk 0:00:59.5]} 23. Nxe5 {[%clk 0:01:26]}
23... Rd2 {[%clk 0:00:40.6]} 24. Rxd2 {[%clk 0:01:20]} 24... Nxd2 {[%clk
0:00:41]} 25. f3 {[%clk 0:01:04.6]} 25... Kc7 {[%clk 0:00:34.7]} 26. Kf2 {[%clk
0:01:05.1]} 26... Kd6 {[%clk 0:00:26.8]} 27. Nd3 {[%clk 0:00:46.1]} 27... a5
{[%clk 0:00:17.5]} 28. b3 {[%clk 0:00:42.4]} 28... Nb1 {[%clk 0:00:15.8]} 29. c4
{[%clk 0:00:34.5]} 29... bxc4 {[%clk 0:00:15.2]} 30. bxc4 {[%clk 0:00:35.4]}
30... Na3 {[%clk 0:00:15.2]} 31. c5+ {[%clk 0:00:30.8]} 31... Kc6 {[%clk
0:00:15.4]} 32. Ke3 {[%clk 0:00:28.2]} 32... Nc2+ {[%clk 0:00:15.3]} 33. Kd2
{[%clk 0:00:25.7]} 33... Nd4 {[%clk 0:00:13.1]} 34. Ke3 {[%clk 0:00:26]} 34...
Nc2+ {[%clk 0:00:11]} 35. Kf4 {[%clk 0:00:23.9]} 35... g6 {[%clk 0:00:07.5]} 36.
Ke5 {[%clk 0:00:22]} 36... Nb4 {[%clk 0:00:04.2]} 37. Nxb4+ {[%clk 0:00:14.1]}
37... axb4 {[%clk 0:00:04.1]} 38. Kd4 {[%clk 0:00:14.3]} 38... Kb5 {[%clk
0:00:03.1]} 39. gxf5 {[%clk 0:00:12.1]} 39... exf5 {[%clk 0:00:02.8]} 40. h4
{[%clk 0:00:11.1]} 40... h6 {[%clk 0:00:02.1]} 41. f4 {[%clk 0:00:10.9]} 1-0

[Event "Betsys MČR v online bleskovém šachu 2021"]
[Site "Chess.com"]
[Date "2021.04.17"]
[Round "10"]
[White "marecek1754"]
[Black "5265"]
[Result "1-0"]
[WhiteElo "2181"]
[BlackElo "1666"]
[TimeControl "180+1"]
[EndTime "10:41:03 PDT"]
[Termination "Uživatel marecek1754 zvítězil matem"]

1. e4 {[%clk 0:03:00.9]} 1... e5 {[%clk 0:02:59.7]} 2. Nf3 {[%clk 0:02:57.9]}
2... Nc6 {[%clk 0:02:57.6]} 3. Bc4 {[%clk 0:02:57.6]} 3... Nf6 {[%clk
0:02:55.1]} 4. Ng5 {[%clk 0:02:53.2]} 4... d5 {[%clk 0:02:54.9]} 5. exd5 {[%clk
0:02:47.6]} 5... Nd4 {[%clk 0:02:55]} 6. c3 {[%clk 0:02:46.7]} 6... b5 {[%clk
0:02:54.2]} 7. Bf1 {[%clk 0:02:45.6]} 7... Nxd5 {[%clk 0:02:34.8]} 8. cxd4
{[%clk 0:02:44.8]} 8... Qxg5 {[%clk 0:02:31.2]} 9. Bxb5+ {[%clk 0:02:35.6]} 9...
Kd8 {[%clk 0:02:28.1]} 10. O-O {[%clk 0:02:35.6]} 10... exd4 {[%clk 0:02:25.6]}
11. d3 {[%clk 0:02:27.9]} 11... Qg6 {[%clk 0:02:18.3]} 12. Re1 {[%clk
0:02:15.8]} 12... Bd6 {[%clk 0:02:12.8]} 13. Nd2 {[%clk 0:01:53]} 13... Rb8
{[%clk 0:02:09.9]} 14. Bc4 {[%clk 0:01:48.8]} 14... Nf4 {[%clk 0:02:06.3]} 15.
Qf3 {[%clk 0:01:45.8]} 15... f5 {[%clk 0:01:41.4]} 16. Nb3 {[%clk 0:01:41.3]}
16... Bb7 {[%clk 0:01:38]} 17. Qg3 {[%clk 0:01:33.6]} 17... Ne2+ {[%clk
0:01:34.8]} 18. Rxe2 {[%clk 0:01:33.7]} 18... Bxg3 {[%clk 0:01:32.2]} 19. hxg3
{[%clk 0:01:34]} 19... Re8 {[%clk 0:01:27.4]} 20. Rxe8+ {[%clk 0:01:29.5]} 20...
Kxe8 {[%clk 0:01:23.6]} 21. Bf4 {[%clk 0:01:27.1]} 21... Qc6 {[%clk 0:01:14.8]}
22. f3 {[%clk 0:01:19.9]} 22... Kd7 {[%clk 0:01:10.4]} 23. Nxd4 {[%clk
0:01:09.5]} 23... Qc5 {[%clk 0:01:04.1]} 24. Be3 {[%clk 0:01:06.4]} 24... Re8
{[%clk 0:01:03.4]} 25. Kf2 {[%clk 0:01:00.1]} 25... g5 {[%clk 0:00:55]} 26. Nc2
{[%clk 0:00:54.8]} 26... Qe5 {[%clk 0:00:53.8]} 27. d4 {[%clk 0:00:50.7]} 27...
Qe7 {[%clk 0:00:51.5]} 28. Re1 {[%clk 0:00:50]} 28... Qg7 {[%clk 0:00:44.5]} 29.
Nb4 {[%clk 0:00:35.4]} 29... h5 {[%clk 0:00:36.2]} 30. Rc1 {[%clk 0:00:29.2]}
30... f4 {[%clk 0:00:33.2]} 31. Bb5+ {[%clk 0:00:25.1]} 31... c6 {[%clk
0:00:29.8]} 32. Nxc6 {[%clk 0:00:22.9]} 32... fxe3+ {[%clk 0:00:29.5]} 33. Ke2
{[%clk 0:00:23]} 33... Bxc6 {[%clk 0:00:27.6]} 34. Bxc6+ {[%clk 0:00:23.3]}
34... Kd8 {[%clk 0:00:27.8]} 35. Bxe8 {[%clk 0:00:22.8]} 35... Qxd4 {[%clk
0:00:25.2]} 36. Rd1 {[%clk 0:00:22.8]} 36... Qxd1+ {[%clk 0:00:21.5]} 37. Kxd1
{[%clk 0:00:23.1]} 37... Kxe8 {[%clk 0:00:22.2]} 38. Ke2 {[%clk 0:00:24]} 38...
Ke7 {[%clk 0:00:22.2]} 39. Kxe3 {[%clk 0:00:24.5]} 39... Kf6 {[%clk 0:00:22.3]}
40. Ke4 {[%clk 0:00:24.8]} 40... Ke6 {[%clk 0:00:22.7]} 41. b4 {[%clk
0:00:21.6]} 41... a6 {[%clk 0:00:20.6]} 42. a4 {[%clk 0:00:21.1]} 42... h4
{[%clk 0:00:20.8]} 43. gxh4 {[%clk 0:00:20.7]} 43... gxh4 {[%clk 0:00:20.9]} 44.
b5 {[%clk 0:00:21.1]} 44... axb5 {[%clk 0:00:20.3]} 45. axb5 {[%clk 0:00:22]}
45... Kd6 {[%clk 0:00:20.7]} 46. Kf4 {[%clk 0:00:22.2]} 46... Kc5 {[%clk
0:00:21.4]} 47. Kg4 {[%clk 0:00:22.5]} 47... Kxb5 {[%clk 0:00:22.2]} 48. Kxh4
{[%clk 0:00:23]} 48... Kc6 {[%clk 0:00:23.1]} 49. Kg5 {[%clk 0:00:23.7]} 49...
Kd7 {[%clk 0:00:23.8]} 50. Kf6 {[%clk 0:00:24.3]} 50... Ke8 {[%clk 0:00:24.3]}
51. g4 {[%clk 0:00:24.4]} 51... Kf8 {[%clk 0:00:24.5]} 52. g5 {[%clk 0:00:25.3]}
52... Kg8 {[%clk 0:00:24.6]} 53. g6 {[%clk 0:00:25.9]} 53... Kf8 {[%clk
0:00:24.4]} 54. g7+ {[%clk 0:00:26.4]} 54... Kg8 {[%clk 0:00:24.5]} 55. f4
{[%clk 0:00:27.3]} 55... Kh7 {[%clk 0:00:24]} 56. Kf7 {[%clk 0:00:28.1]} 56...
Kh6 {[%clk 0:00:22.2]} 57. g8=Q {[%clk 0:00:29]} 57... Kh5 {[%clk 0:00:22.6]}
58. Qg5# {[%clk 0:00:29.3]} 1-0

[Event "Betsys MČR v online bleskovém šachu 2021"]
[Site "Chess.com"]
[Date "2021.04.17"]
[Round "10"]
[White "Akdub"]
[Black "Listro33"]
[Result "1-0"]
[WhiteElo "2101"]
[BlackElo "1864"]
[TimeControl "180+1"]
[EndTime "10:41:03 PDT"]
[Termination "Uživatel Akdub zvítězil na čas"]

1. e4 {[%clk 0:03:00.9]} 1... c6 {[%clk 0:02:59.2]} 2. d4 {[%clk 0:03:00.3]}
2... d5 {[%clk 0:02:59.7]} 3. exd5 {[%clk 0:03:01.2]} 3... cxd5 {[%clk
0:02:59.8]} 4. c4 {[%clk 0:03:02]} 4... Nf6 {[%clk 0:02:57.5]} 5. Nc3 {[%clk
0:03:02]} 5... Nc6 {[%clk 0:02:57.3]} 6. Be3 {[%clk 0:03:00.5]} 6... e6 {[%clk
0:02:54.8]} 7. Nf3 {[%clk 0:02:59.7]} 7... Be7 {[%clk 0:02:55.2]} 8. a3 {[%clk
0:02:58.1]} 8... O-O {[%clk 0:02:55.2]} 9. Bd3 {[%clk 0:02:57.6]} 9... dxc4
{[%clk 0:02:53.7]} 10. Bxc4 {[%clk 0:02:57.8]} 10... b6 {[%clk 0:02:53.1]} 11.
O-O {[%clk 0:02:57]} 11... Bb7 {[%clk 0:02:53]} 12. Rc1 {[%clk 0:02:56.8]} 12...
Rc8 {[%clk 0:02:51.6]} 13. Ba2 {[%clk 0:02:56.5]} 13... Qc7 {[%clk 0:02:32.6]}
14. b4 {[%clk 0:02:45.4]} 14... Qb8 {[%clk 0:02:30]} 15. Qd2 {[%clk 0:02:39.9]}
15... Rfd8 {[%clk 0:02:28.5]} 16. Rfd1 {[%clk 0:02:39.4]} 16... Qa8 {[%clk
0:02:27.5]} 17. h3 {[%clk 0:02:24.7]} 17... h6 {[%clk 0:02:26.1]} 18. Qe2 {[%clk
0:02:09.5]} 18... a5 {[%clk 0:01:59]} 19. b5 {[%clk 0:01:51.5]} 19... Nb8 {[%clk
0:01:58.5]} 20. a4 {[%clk 0:01:49.9]} 20... Nbd7 {[%clk 0:01:58]} 21. Ne1 {[%clk
0:01:43.5]} 21... Nd5 {[%clk 0:01:53.1]} 22. Nxd5 {[%clk 0:01:18.4]} 22... Bxd5
{[%clk 0:01:54]} 23. f3 {[%clk 0:01:12.5]} 23... Bd6 {[%clk 0:01:38.2]} 24. Nd3
{[%clk 0:01:10.5]} 24... Ba3 {[%clk 0:00:33.7]} 25. Rxc8 {[%clk 0:00:55.1]}
25... Rxc8 {[%clk 0:00:31.3]} 26. Nf4 {[%clk 0:00:53.4]} 26... Bxa2 {[%clk
0:00:19.7]} 27. Qxa2 {[%clk 0:00:53.6]} 27... Bd6 {[%clk 0:00:19.9]} 28. Nd3
{[%clk 0:00:46.6]} 28... Rc3 {[%clk 0:00:18.1]} 29. Qb2 {[%clk 0:00:45.2]} 29...
Qc8 {[%clk 0:00:17.5]} 30. Rc1 {[%clk 0:00:42.5]} 30... Bb4 {[%clk 0:00:13.3]}
31. Rxc3 {[%clk 0:00:30.2]} 31... Bxc3 {[%clk 0:00:11.4]} 32. Qc1 {[%clk
0:00:25.3]} 32... Nf6 {[%clk 0:00:10.6]} 33. Ne5 {[%clk 0:00:18.1]} 33... Nd5
{[%clk 0:00:09.6]} 34. Bf2 {[%clk 0:00:16.9]} 34... Qf8 {[%clk 0:00:06.9]} 35.
Nc6 {[%clk 0:00:14.8]} 35... Qd6 {[%clk 0:00:04.9]} 36. Qc2 {[%clk 0:00:13.8]}
36... Qd7 {[%clk 0:00:02.4]} 37. Qd3 {[%clk 0:00:13.5]} 37... Qd6 {[%clk
0:00:02]} 38. Qe4 {[%clk 0:00:12.5]} 38... Qa3 {[%clk 0:00:01.4]} 39. Kh2 {[%clk
0:00:11.6]} 39... Qxa4 {[%clk 0:00:01.5]} 40. Ne5 {[%clk 0:00:09.2]} 1-0